fUST/lending_fUST_20260211
["ID","MTS","AMOUNT","RATE_DAILY","PERIOD"]
[405101232,1770816567208,-2018.99539088,0.00031019,2]
[405101233,1770816567227,-692.0894114,0.00031942,2]
[405101234,1770816567249,-177.76721893,0.00032112,2]
[405101265,1770816632366,-276.65,0.000331,2]
[405101267,1770816632375,-223.34747818,0.000332,117]
[405101269,1770816632385,-214.186987,0.00033862,2]
[405101271,1770816632394,-251.64722934,0.00034905,2]
[405101275,1770816632426,-364.42522498,0.00034905,2]
[405101547,1770816675732,3133.41377715,0.00030137,120]
[405101549,1770816687410,505.75214684,0.00013273,2]
[405101550,1770816744808,10000.0,0.00030137,120]
[405101551,1770816755233,10000.0,0.00030137,120]
[405101552,1770816763427,10000.0,0.00030137,120]
[405101553,1770816773191,10000.0,0.00030137,120]
[405101555,1770816780668,10000.0,0.00030137,120]
[405101556,1770816788834,10000.0,0.00030137,120]
[405101557,1770816796890,10000.0,0.00030137,120]
[405101558,1770816805404,10000.0,0.00030137,120]
[405101559,1770816813864,10000.0,0.00030137,120]
[405101560,1770816821457,10000.0,0.00030137,120]
[405101561,1770816828311,10000.0,0.00030137,120]
[405101562,1770816835857,10000.0,0.00030137,120]
[405101563,1770816842761,10000.0,0.00030137,120]
[405101564,1770816850832,10000.0,0.00030137,120]
[405101565,1770816858118,10000.0,0.00030137,120]
[405101566,1770816865052,10000.0,0.00030137,120]
[405101567,1770816872289,10000.0,0.00030137,120]
[405101568,1770816879887,10000.0,0.00030137,120]
[405101569,1770816886471,10000.0,0.00030137,120]
[405101570,1770816895365,10000.0,0.00030137,120]
[405101571,1770816901867,10000.0,0.00030137,120]
[405101572,1770816909377,10000.0,0.00030137,120]
[405101573,1770816916140,10000.0,0.00030137,120]
[405101574,1770816922577,10000.0,0.00030137,120]
[405101575,1770816929255,10000.0,0.00030137,120]
[405101576,1770816935573,10000.0,0.00030137,120]
[405101577,1770816942085,10000.0,0.00030137,120]
[405101578,1770816949173,10000.0,0.00030137,120]
[405101579,1770816961703,3548.29,0.00030137,120]
[405101580,1770817348864,-311.9968019,0.00023969,2]
[405101581,1770817350996,5000.0,0.000237,2]
[405101582,1770817365607,311.99680187,0.000237,2]
[405101583,1770817445023,1321.3573042,0.000237,2]
[405101584,1770817547223,-150.0,0.00024334,2]
[405101585,1770817547246,-24.90656944,0.00024699,2]
[405101586,1770817630109,-485.1918088,0.00024699,2]
[405101587,1770817630131,-150.0,0.00024952,2]
[405101588,1770817630153,-829.36887476,0.00025957,2]
[405101589,1770817630173,-177.0,0.00026952,2]
[405101590,1770817630194,-666.30756634,0.00027576,2]
[405101591,1770817636093,-482.33180494,0.00027576,2]
[405101592,1770817636114,-204.0,0.00028952,2]
[405101593,1770817636136,-881.10198799,0.00029196,2]
[405101594,1770817761144,-592.49729617,0.00025583,2]
[405101595,1770817761168,-1092.03351267,0.00027077,2]
[405101596,1770817761189,-1591.56972917,0.00028964,2]
[405101597,1770817761210,-337.129859,0.00029789,2]
[405101598,1770817761232,-3570.5146257,0.00030092,2]
[405101599,1770817761256,-2091.10594566,0.0003085,2]
[405101600,1770817761277,-206.0,0.00032272,3]
[405101601,1770817761302,-2590.64216216,0.00032736,2]
[405101624,1770817832560,-152.0,0.00033,120]
[405101627,1770817832572,-223.34747817,0.00033904,120]
[405101629,1770817832582,-500.0,0.00034004,7]
[405101631,1770817832591,-81.57632183,0.00034004,7]
[405101644,1770817837708,-418.42367817,0.00034004,7]
[405101645,1770817837718,-500.0,0.00034004,7]
[405101646,1770817837728,-500.0,0.00034004,7]
[405101647,1770817837737,-500.0,0.00034004,7]
[405101648,1770817837747,-500.0,0.00034004,7]
[405101649,1770817837756,-467.08712839,0.00034004,7]
[405101650,1770817837767,-500.0,0.00034004,7]
[405101651,1770817837776,-500.0,0.00034004,7]
[405101652,1770817837786,-63.16297191,0.00034004,7]
[405101668,1770817839923,-3e-08,0.00034004,7]
[405101679,1770817840022,-256.42980554,0.00034004,7]
[405101681,1770817840033,-180.40722252,0.00034004,7]
[405101683,1770817840043,-500.0,0.00034004,7]
[405101685,1770817840051,-500.0,0.00034004,7]
[405101687,1770817840060,-500.0,0.00034004,7]
[405101689,1770817840069,-500.0,0.00034004,7]
[405101691,1770817840078,-507.71277748,0.00034004,7]
[405101877,1770817844492,-17.20217018,0.00034004,7]
[405101878,1770817844502,-500.0,0.00034004,7]
[405101879,1770817844512,-500.0,0.00034004,7]
[405101880,1770817844521,-266.61417258,0.00034004,7]
[405101881,1770817844531,-500.0,0.00034004,7]
[405101882,1770817844543,-500.0,0.00034004,7]
[405101883,1770817844552,-500.0,0.00034004,7]
[405101884,1770817844561,-500.0,0.00034004,7]
[405101885,1770817844570,-119.46577232,0.00034866,2]
[405101892,1770817845785,-1881.57840617,0.00034866,2]
[405101893,1770817845796,-2883.2137777,0.0003489,2]
[405101894,1770817856058,233.23211675,0.00030137,120]
[405101895,1770817866508,150.0,0.0002589,2]
[405101896,1770817866907,177.0,0.0002789,2]
[405101897,1770817867300,204.0,0.0002989,2]
[405101898,1770817867893,231.0,0.0003189,2]
[405101899,1770817894769,553.07235322,0.00025583,2]
[405101900,1770817895048,1427.37014204,0.00032766,2]
[405101901,1770817895431,1008.10166084,0.00027085,2]
[405101904,1770818762113,177.79972818,0.000189,2]
[405101906,1770818779570,200.0,0.00030136,120]
[405101907,1770818787607,-478.39104371,0.00024703,2]
[405101910,1770818844129,-986.55384723,0.00024703,2]
[405101911,1770818845116,-1403.54366537,0.00024703,2]
[405101912,1770818845137,-150.0,0.00024954,2]
[405101913,1770818845159,-77.35144245,0.00025327,2]
[405101914,1770818851090,-308.20386432,0.00025327,2]
[405101921,1770818945201,-1434.4805824,0.00024953,2]
[405101922,1770818945222,-202.76645248,0.00025327,2]
[405101923,1770818945244,-580.52392114,0.00025946,2]
[405101924,1770818947105,-502.62028136,0.00025946,2]
[405101925,1770818947127,-300.0,0.00026659,2]
[405101926,1770818947146,-10000.0,0.0002666,5]
[405101927,1770818947166,-296.0,0.00026847,2]
[405101928,1770818947187,-10000.0,0.00026849,30]
[405101929,1770818947306,-1577.96664576,0.00026948,2]
[405101930,1770818947332,-177.0,0.00026954,2]
[405101931,1770818947351,-200.0,0.00027037,2]
[405101932,1770818947372,-2072.78908901,0.00027951,2]
[405101933,1770818947392,-420.0,0.00028831,2]
[405101934,1770818947411,-1826.97815828,0.00028854,2]
[405101935,1770818947432,-2567.61153226,0.00028953,2]
[405101936,1770818947451,-196.91874372,0.00028954,2]
[405101937,1770818947472,-3062.43397552,0.00029955,2]
[405101938,1770818947493,-1826.97815825,0.00030832,2]
[405101939,1770818947515,-3497.48061392,0.00030957,2]
[405101940,1770818947536,-240.0,0.00031181,2]
[405101941,1770818947558,-171.8734669,0.00031819,2]
[405101942,1770818947577,-1826.97815825,0.00032809,2]
[405101943,1770818957416,955.05386775,0.0002765,5]
[405101973,1770819031655,-500.0,0.00026848,2]
[405101975,1770819031665,-500.0,0.00026848,2]
[405101977,1770819031674,-500.0,0.00026848,2]
[405101978,1770819031683,-400.51511349,0.00026848,2]
[405101980,1770819031694,-500.0,0.00026848,2]
[405101982,1770819031709,-500.0,0.00026848,2]
[405101983,1770819031719,-500.0,0.00026848,2]
[405101984,1770819031729,-500.0,0.00026848,2]
[405101985,1770819031738,-251.84601918,0.00026848,2]
[405101986,1770819031747,-500.0,0.00026848,2]
[405101987,1770819031756,-169.43499418,0.00026848,2]
[405101988,1770819031766,-1854.40718093,0.00027632,5]
[405102052,1770819040723,-3492.42492441,0.00027632,5]
[405102058,1770819040785,-14653.16789466,0.00027632,5]
[405102060,1770819040794,-298.14022129,0.00027649,2]
[405102062,1770819040804,-12193.09188405,0.0002765,5]
[405102065,1770819040828,-3e-08,0.0002765,5]
[405102332,1770819450107,508.46688933,0.000237,2]
[405102333,1770819635197,688.54,0.000237,2]
[405102334,1770820044134,-150.0,0.00024516,2]
[405102335,1770820044158,-13.08951079,0.00024884,2]
[405102336,1770820077854,-616.18497455,0.00024884,2]
[405102337,1770820077877,-150.0,0.00025044,2]
[405102338,1770820077901,-1170.32855538,0.00025417,2]
[405102339,1770820077925,-1000.0,0.00025585,30]
[405102340,1770820077948,-1711.38262541,0.00026319,2]
[405102341,1770820077969,-1200.0,0.00026847,2]
[405102342,1770820077991,-500.0,0.00026848,5]
[405102343,1770820078013,-177.0,0.00027044,2]
[405102344,1770820078034,-300.0,0.00027085,2]
[405102345,1770820078054,-300.0,0.00027085,2]
[405102346,1770820078075,-300.0,0.00027085,2]
[405102347,1770820078097,-2252.43669545,0.0002722,2]
[405102348,1770820078119,-1314.51964408,0.0002755,2]
[405102349,1770820078139,-200.0,0.00027648,2]
[405102350,1770820078162,-210.937462,0.00027648,2]
[405102351,1770820078186,-500.0,0.00027649,2]
[405102352,1770820078208,-500.0,0.00027649,2]
[405102353,1770820078231,-500.0,0.00027649,2]
[405102354,1770820078253,-500.0,0.00027649,2]
[405102355,1770820078275,-500.0,0.00027649,2]
[405102356,1770820078297,-520.71116085,0.00027649,2]
[405102357,1770820078317,-500.0,0.00027649,2]
[405102358,1770820078342,-500.0,0.00027649,2]
[405102359,1770820078367,-500.0,0.00027649,2]
[405102360,1770820078387,-500.0,0.00027649,2]
[405102361,1770820078410,-500.0,0.00027649,2]
[405102362,1770820078431,-500.0,0.00027649,2]
[405102363,1770820078451,-500.0,0.00027649,2]
[405102364,1770820078474,-613.47020099,0.00027649,2]
[405102365,1770820078495,-507.71277748,0.00027649,2]
[405102366,1770820078516,-500.0,0.00027649,5]
[405102367,1770820078537,-21851.85424817,0.0002765,5]
[405102368,1770820078654,-152.422837,0.0002765,7]
[405102369,1770820078678,-245.380717,0.00028467,2]
[405102370,1770820078702,-500.0,0.00028639,2]
[405102371,1770820078726,-329.57918928,0.00028787,2]
[405102372,1770820078748,-208.69815491,0.00028787,2]
[405102373,1770820078768,-35000.0,0.00028788,5]
[405102374,1770820090361,455.29302878,0.00029,2]
[405102375,1770820115884,1549.28508223,0.0002465,2]
[405102376,1770820144910,1041.66666667,0.00029,2]
[405102377,1770820163200,-3334.54483552,0.00029023,2]
[405102378,1770820163226,-204.0,0.00029044,2]
[405102379,1770820163250,-5097.0518802,0.00029157,2]
[405102380,1770820163272,-1428.0,0.00029158,2]
[405102381,1770820163295,-340.0,0.00029279,2]
[405102382,1770820163315,-420.0,0.00029279,2]
[405102383,1770820163338,-1314.51964407,0.00029714,2]
[405102384,1770820163362,-179.27446678,0.00029923,2]
[405102385,1770820163385,-3810.23820306,0.00029924,2]
[405102386,1770820163407,-4089.8494631,0.00030826,2]
[405102387,1770820163433,-198.30750989,0.00031044,2]
[405102388,1770820163455,-389.09865764,0.000315,2]
[405102389,1770820163476,-444.68418016,0.000315,2]
[405102390,1770820163497,-284.97179729,0.000315,2]
[405102391,1770820163519,-151.0,0.00031597,7]
[405102392,1770820163540,-189.0,0.00031651,3]
[405102393,1770820163563,-4369.46072314,0.00031727,2]
[405102394,1770820163584,-1314.51964407,0.00031877,2]
[405102395,1770820163604,-151.0,0.00032169,7]
[405102396,1770820163625,-694.81903151,0.00032169,2]
[405102397,1770820163647,-325.35637199,0.00032362,2]
[405102398,1770820163669,-4649.07198319,0.00032629,2]
[405102399,1770820163691,-1137.3060023,0.0003286,2]
[405102401,1770820166721,1049.21811834,0.00030832,120]
[405102402,1770820205611,3133.41377715,0.00029,2]
[405102403,1770820230795,1305.282,0.00030092,120]
[405102476,1770820231931,-508.46688933,0.00032961,5]
[405102480,1770820231967,-95.88172867,0.00032961,5]
[405102482,1770820231976,-223.34747817,0.000332,117]
[405102484,1770820231992,-500.0,0.00033302,7]
[405102486,1770820232002,-4928.68324323,0.0003353,2]
[405102488,1770820232010,-151.0,0.0003353,31]
[405102490,1770820232020,-500.0,0.00033591,7]
[405102492,1770820232029,-405.01219185,0.000338,2]
[405102530,1770820240226,-94.2429126,0.000338,2]
[405102533,1770820240237,-318.73174214,0.0003398,3]
[405102603,1770820240923,-402.30825786,0.0003398,3]
[405102605,1770820240933,-250.0,0.00034059,2]
[405102607,1770820240942,-250.0,0.00034059,2]
[405102609,1770820240951,-250.0,0.00034059,2]
[405102611,1770820240960,-250.0,0.00034059,2]
[405102613,1770820240970,-250.0,0.00034059,2]
[405102615,1770820240979,-250.0,0.00034059,2]
[405102617,1770820240988,-250.0,0.00034059,2]
[405102619,1770820241004,-250.0,0.00034059,2]
[405102621,1770820241013,-500.0,0.00034059,2]
[405102623,1770820241023,-250.0,0.00034059,2]
[405102625,1770820241033,-250.0,0.00034059,2]
[405102627,1770820241042,-250.0,0.00034059,2]
[405102629,1770820241051,-250.0,0.00034059,2]
[405102631,1770820241060,-250.0,0.00034059,2]
[405102633,1770820241069,-250.0,0.00034059,2]
[405102635,1770820241078,-250.0,0.00034059,2]
[405102637,1770820241088,-250.0,0.00034059,2]
[405102639,1770820241097,-250.0,0.00034059,2]
[405102641,1770820241106,-250.0,0.00034059,2]
[405102643,1770820241116,-223.33586128,0.00034059,2]
[405102645,1770820241125,-336.43794688,0.00034059,2]
[405102647,1770820241135,-201.932861,0.00034059,2]
[405102649,1770820241144,-250.0,0.00034059,2]
[405102651,1770820241153,-250.0,0.00034059,2]
[405102653,1770820241162,-250.0,0.00034059,2]
[405102655,1770820241171,-250.0,0.00034059,2]
[405102657,1770820241180,-250.0,0.00034059,2]
[405102659,1770820241189,-258.18186464,0.00034059,2]
[405102661,1770820241198,-5208.29450327,0.00034431,2]
[405102671,1770820241289,-178.006924,0.00034467,31]
[405102673,1770820241299,-2639.01314917,0.0003487,2]
[405102675,1770820241308,-346.91,0.0003489,2]
[405102677,1770820241318,-5278.02629834,0.0003489,2]
[405102679,1770820241329,-93811.27618997,0.000349,2]
[405102680,1770820241338,-2639.01314917,0.0003498,2]
[405102682,1770820241347,-43704.33443385,0.0003499,2]
[405102685,1770820241359,-5278.02629834,0.0003499,2]
[405102687,1770820241368,-10806.87625383,0.00035,2]
[405102689,1770820241377,-106352.92635689,0.00035,2]
[405102691,1770820241387,-1162.38167524,0.00035,5]
[405102693,1770820241397,-450.21047531,0.00035,2]
[405102695,1770820241407,-627.0,0.00035049,2]
[405102697,1770820241416,-1376.0,0.00035049,2]
[405102699,1770820241425,-539.5,0.00035072,30]
[405102701,1770820241435,-1041.66666667,0.00035255,2]
[405102703,1770820241444,-2639.01314917,0.00035323,3]
[405102705,1770820241453,-4714.75840755,0.00035333,2]
[405102708,1770820241472,-747.11953109,0.00035333,2]
[405102710,1770820241481,-203.43147983,0.00035531,2]
[405102712,1770820241490,-500.0,0.00035616,120]
[405102714,1770820241504,-500.0,0.00035616,120]
[405102716,1770820241514,-151.0,0.00035616,31]
[405102718,1770820241523,-151.0,0.00035616,31]
[405102720,1770820241532,-151.0,0.00035616,31]
[405102722,1770820241542,-151.0,0.00035616,31]
[405102724,1770820241551,-151.0,0.00035616,31]
[405102726,1770820241560,-283.180982,0.00035616,31]
[405102728,1770820241569,-150.0,0.00035629,2]
[405102730,1770820241578,-535.08054137,0.0003564,2]
[405102732,1770820241587,-16856.68746572,0.0003564,2]
[405102839,1770820245977,-500.0,0.00034059,2]
[405102840,1770820245988,-329.46012886,0.0003499,10]
[405102841,1770820246001,-500.527,0.0003499,10]
[405102842,1770820246153,-4065.70680507,0.0003499,10]
[405102847,1770820256686,1267.25,0.00029,2]
[405102848,1770820264476,5000.0,0.00029,2]
[405102851,1770820434159,-150.0,0.00024953,2]
[405102852,1770820458770,-1000.0,0.00024953,2]
[405102853,1770820467485,-1000.0,0.00024953,2]
[405102854,1770820469051,-23.92507911,0.00024953,2]
[405102855,1770820469073,-150.0,0.0002589,2]
[405102856,1770820469094,-265.41,0.000259,2]
[405102863,1770820805043,5000.0,0.00020587,2]
[405102864,1770820805340,5000.0,0.00020587,2]
[405102866,1770820929056,519.0,0.00030137,120]
[405102869,1770821137404,-150.0,0.00025547,2]
[405102870,1770821137426,-158.94062555,0.00027547,2]
[405102872,1770821230092,-18.05937445,0.00027547,2]
[405102873,1770821230111,-132.77148547,0.0002937,14]
[405102874,1770821232089,-24.22851453,0.0002937,14]
[405102875,1770821232112,-204.0,0.00029547,2]
[405102876,1770821232132,-500.0,0.00030825,2]
[405102877,1770821232151,-500.0,0.00030825,5]
[405102878,1770821232171,-231.0,0.00031547,2]
[405102879,1770821232191,-1028.98986073,0.000329,2]
[405102880,1770821232211,-400.0,0.00032988,2]
[405102881,1770821232230,-317.29242481,0.00032989,3]
[405102882,1770821252083,-5.70757519,0.00032989,3]
[405102883,1770821252102,-350.63363701,0.00032989,3]
[405102884,1770821355119,-150.0,0.0002589,2]
[405102885,1770821355142,-177.0,0.0002789,2]
[405102886,1770821355164,-204.0,0.0002989,2]
[405102887,1770821355185,-3255.0,0.0003,2]
[405102888,1770821355210,-400.0,0.00030136,2]
[405102889,1770821355237,-5000.0,0.00030137,120]
[405102890,1770821355259,-1248.00912228,0.00030137,120]
[405102891,1770821371257,233.23211675,0.00024953,2]
[405102928,1770821432037,-231.0,0.0003189,2]
[405102930,1770821432048,-60.37241762,0.0003298,10]
[405102932,1770821432167,-450.08276856,0.0003298,10]
[405102933,1770821432287,-11867.36481382,0.0003298,10]
[405102934,1770821432296,-4450.93101464,0.0003298,10]
[405102935,1770821432307,-825.0,0.0003298,10]
[405102989,1770821438363,-5038.91898536,0.0003298,10]
[405102991,1770821438372,-3129.506244,0.0003298,2]
[405102993,1770821438382,-400.0,0.00032987,2]
[405102995,1770821438391,-1417.0,0.00032987,3]
[405102997,1770821438400,-280.95283603,0.00032988,7]
[405102999,1770821438409,-801.14,0.0003299,3]
[405103001,1770821438419,-6259.012488,0.0003299,2]
[405103003,1770821438429,-91550.91903157,0.00033,4]
[405103174,1770821440474,-524.11753916,0.00032979,7]
[405103176,1770821440484,-500.0,0.00032979,7]
[405103178,1770821440493,-500.0,0.00032979,7]
[405103180,1770821440503,-491.18485643,0.00032979,7]
[405103182,1770821440512,-500.0,0.00032979,7]
[405103184,1770821440521,-504.51920579,0.00032979,7]
[405103186,1770821440532,-604.84952756,0.00032979,7]
[405103188,1770821440541,-500.0,0.00032979,7]
[405103190,1770821440550,-500.0,0.00032979,7]
[405103192,1770821440559,-623.14409907,0.00032979,7]
[405103194,1770821440570,-500.0,0.00032979,7]
[405103196,1770821440582,-171.43627359,0.00032979,7]
[405103198,1770821440591,-500.0,0.00032979,7]
[405103200,1770821440601,-275.66307272,0.00032979,7]
[405103249,1770821445235,-224.33692728,0.00032979,7]
[405103250,1770821445246,-6781.95252608,0.00033,4]
[405103264,1770821446302,-5042.41363542,0.00033,4]
[405103265,1770821446419,-15470.32286693,0.00033,4]
[405103266,1770821446429,-1053.38679232,0.00033,2]
[405103279,1770822372035,500.0,0.00013699,2]
[405103280,1770822372085,669.32877075,0.00014247,2]
[405103281,1770822427110,-150.0,0.00025376,2]
[405103282,1770822427135,-121.52139357,0.00027376,2]
[405103283,1770822428084,-55.47860643,0.00027376,2]
[405103284,1770822428105,-204.0,0.00029376,2]
[405103285,1770822428127,-443.96093616,0.0003,7]
[405103286,1770822428148,-283.11430464,0.00030137,120]
[405103287,1770822435087,-2106.98320796,0.00030137,120]
[405103288,1770822435107,-31.28721573,0.00030454,2]
[405103289,1770822452105,-847.79971167,0.00030454,2]
[405103290,1770822452126,-525.9590435,0.00031049,2]
[405103291,1770822452154,-177.0,0.00031376,2]
[405103292,1770822452177,-269.60400746,0.00032281,2]
[405103293,1770822452198,-245.3807173,0.0003241,2]
[405103294,1770822452218,-324.43669786,0.00032794,2]
[405103295,1770822453087,-75.56330214,0.00032794,2]
[405103296,1770822453108,-297.0,0.00032795,3]
[405103297,1770822453134,-225.37125575,0.00032795,2]
[405103306,1770822573100,-169.0,0.0003,14]
[405103307,1770822573121,-1434.4805824,0.00030137,120]
[405103308,1770822576950,150.0,0.0002589,2]
[405103343,1770822632313,-169.0,0.00031644,14]
[405103344,1770822632323,-495.01,0.00032696,2]
[405103347,1770822632334,-433.18211007,0.00032696,2]
[405103349,1770822632346,-418.41551014,0.00032696,2]
[405103351,1770822632355,-250.68878832,0.00032793,2]
[405103353,1770822632365,-332.98758147,0.00032794,2]
[405103356,1770822632395,-531.20795064,0.00032794,2]
[405103358,1770822637367,307.24,0.0002351,2]
[405103377,1770822638447,-1515.72515422,0.00032794,2]
[405103909,1770822693594,941.94523822,0.0003,14]
[405103910,1770822903167,21552.1261,1e-05,2]
[405103911,1770822977521,586.31061721,0.00013273,2]
[405103914,1770823208798,500.0,0.00013273,2]
[405103915,1770823287053,455.60127165,0.00013273,2]
[405103916,1770823287104,500.0,0.00013273,2]
[405103917,1770823287134,358.74399458,0.00013821,2]
[405103920,1770823396121,657.88,0.000235,2]
[405103921,1770823512272,1500.9,0.00030137,120]
[405103922,1770823596613,501.149941,0.00013273,2]
[405103923,1770823627139,-151.0,0.0003,14]
[405103924,1770823627159,-234.79857749,0.00032239,2]
[405103925,1770823634124,-59.793127,0.00032239,2]
[405103926,1770823634146,-430.32797133,0.00032281,2]
[405103927,1770823634167,-340.0,0.00032355,3]
[405103928,1770823634188,-226.07467608,0.00032356,2]
[405103929,1770823634210,-72.3307538,0.00032356,2]
[405103930,1770823638100,-334.60366315,0.00032356,2]
[405103931,1770823638127,-723.43896346,0.00032356,2]
[405103932,1770823638154,-965.10337316,0.00032356,2]
[405103937,1770823722025,-287.78254614,0.00024,14]
[405103939,1770823746092,-511.87745386,0.00024,14]
[405103940,1770823746113,-344.22479327,0.0003,2]
[405103941,1770823746138,-164.13963387,0.00030738,2]
[405103942,1770823790968,311.43942252,0.00030738,2]
[405103943,1770823794011,355.57483782,0.00030738,2]
[405103944,1770823803912,150.0,0.0002589,2]
[405103945,1770823807384,464.6589018,0.00013273,2]
[405103946,1770823807409,38.31766799,0.00013273,2]
[405103977,1770823832568,-1023.8,0.00032314,2]
[405104059,1770823840927,-3e-08,0.00032314,2]
[405104124,1770823846532,-1142.3617184,0.00032314,2]
[405104126,1770823846736,-1084.28894947,0.00032314,2]
[405104127,1770823846745,-403.611853,0.00032505,2]
[405104128,1770823846755,-175.48215183,0.00032793,2]
[405104129,1770823846764,-241.27069707,0.00032793,2]
[405104130,1770823846774,-500.0,0.00032793,2]
[405104131,1770823846783,-500.0,0.00032793,2]
[405104132,1770823846792,-500.0,0.00032793,2]
[405104133,1770823846801,-500.0,0.00032793,2]
[405104134,1770823846810,-500.0,0.00032793,2]
[405104135,1770823846821,-600.88687177,0.00032793,2]
[405104136,1770823846830,-513.18105783,0.00032793,2]
[405104137,1770823846839,-47394.70805792,0.00032794,2]
[405104138,1770823846849,-500.0,0.00032795,2]
[405104139,1770823846858,-500.0,0.00032795,2]
[405104140,1770823846867,-605.63,0.00032795,5]
[405104141,1770823846877,-605.63,0.00032795,5]
[405104142,1770823846886,-4517.6893965,0.00032796,2]
[405104143,1770823846895,-500.0,0.00032989,2]
[405104144,1770823846904,-605.63,0.00032989,5]
[405104145,1770823846913,-750.97471854,0.0003299,2]
[405104146,1770823846923,-500.0,0.00032998,5]
[405104147,1770823846932,-415.43913267,0.00032998,5]
[405104148,1770823846941,-8584.19320768,0.00033,2]
[405104149,1770823846950,-171.0,0.00033,14]
[405104150,1770823846959,-183.03145831,0.000332,117]
[405104151,1770823846969,-500.0,0.00033223,7]
[405104152,1770823846978,-500.0,0.00033709,7]
[405104153,1770823846987,-11786.15,0.00033803,10]
[405104154,1770823846996,-2000.0,0.00033813,2]
[405104155,1770823847005,-2000.0,0.00033813,2]
[405104156,1770823847015,-2000.0,0.00033813,2]
[405104157,1770823847026,-2000.0,0.00033813,2]
[405104158,1770823847037,-2000.0,0.00033813,2]
[405104159,1770823847047,-2000.0,0.00033813,2]
[405104160,1770823847056,-2000.0,0.00033813,2]
[405104161,1770823847065,-2000.0,0.00033813,2]
[405104162,1770823847075,-2000.0,0.00033813,2]
[405104163,1770823847085,-2000.0,0.00033813,2]
[405104164,1770823847093,-2000.0,0.00033813,2]
[405104165,1770823847103,-2000.0,0.00033813,2]
[405104166,1770823847111,-2000.0,0.00033813,2]
[405104167,1770823847122,-2000.0,0.00033813,2]
[405104168,1770823847131,-2000.0,0.00033813,2]
[405104169,1770823847140,-2000.0,0.00033813,2]
[405104170,1770823847149,-500.0,0.00033979,7]
[405104171,1770823847158,-168.0,0.00034055,120]
[405104172,1770823847166,-196.3437925,0.00034059,2]
[405104173,1770823847175,-183.0314583,0.00034279,120]
[405104174,1770823847184,-168.0,0.0003432,2]
[405104175,1770823847194,-891.94767329,0.00034337,7]
[405104176,1770823847203,-878.15,0.00034447,2]
[405104177,1770823847213,-633.0,0.00034447,2]
[405104178,1770823847224,-1046.189,0.00034447,2]
[405104179,1770823847234,-168.0,0.000345,2]
[405104180,1770823847244,-526.3508334,0.00034592,7]
[405104181,1770823847253,-872.0,0.00034658,30]
[405104182,1770823847263,-14143.38,0.00034686,10]
[405104183,1770823847272,-500.0,0.00034696,7]
[405104184,1770823847281,-151.62002564,0.00034701,7]
[405104185,1770823847290,-216.11245642,0.00034704,2]
[405104186,1770823847300,-605.63,0.00034704,5]
[405104187,1770823847313,-150.333,0.00034783,2]
[405104188,1770823847323,-150.352,0.00034783,2]
[405104189,1770823847333,-224.732,0.00034783,2]
[405104190,1770823847346,-650.0,0.00034899,7]
[405104191,1770823847356,-168.0,0.00034904,7]
[405104192,1770823847365,-526.02378598,0.00034986,5]
[405104193,1770823847375,-201.93286099,0.00034989,10]
[405104194,1770823847385,-250.0,0.00034989,10]
[405104195,1770823847394,-500.0,0.00034989,10]
[405104196,1770823847403,-209.40437684,0.00034989,10]
[405104197,1770823847413,-250.0,0.00034989,10]
[405104198,1770823847423,-500.0,0.00034989,10]
[405104199,1770823847433,-217.15233878,0.00034989,10]
[405104200,1770823847442,-250.0,0.00034989,10]
[405104201,1770823847455,-225.18697532,0.00034989,10]